bitfinex-derivatives/quotes_BTCF0:USTF0_20250814
["timestamp","ask_amount","ask_price","bid_price","bid_amount"]
[1755179902630,1.39593983,118520.0,118510.0,1.0582611]
[1755179903430,1.39593983,118520.0,118510.0,0.97392]
[1755179903725,1.39693983,118520.0,118510.0,1.0582612]
[1755179904126,0.69675727,118520.0,118510.0,1.0582612]
[1755179904424,1.39693983,118520.0,118510.0,1.0582612]
[1755179904630,0.66992391,118520.0,118510.0,1.0582612]
[1755179904821,1.30160896,118520.0,118510.0,1.0582612]
[1755179905821,0.6014264,118520.0,118510.0,1.4190612]
[1755179906123,1.30160896,118520.0,118510.0,1.4190612]
[1755179906628,1.30160896,118520.0,118510.0,0.4451412]
[1755179907022,1.30160896,118520.0,118510.0,1.4184612]
[1755179907723,0.88705256,118520.0,118510.0,1.4184612]
[1755179908030,0.001,118520.0,118510.0,1.4184612]
[1755179908231,0.05013,118520.0,118510.0,1.4184612]
[1755179908532,0.134464,118520.0,118510.0,1.4184612]
[1755179908829,1.13295656,118520.0,118510.0,1.4182212]
[1755179909131,0.432774,118520.0,118510.0,1.4182212]
[1755179910834,1.13295656,118520.0,118510.0,1.4181012]
[1755179911632,0.432774,118520.0,118510.0,1.4181012]
[1755179911835,0.431781,118510.0,118500.0,0.0843423]
[1755179912139,1.13196356,118510.0,118500.0,0.97264]
[1755179912322,1.13196356,118510.0,118500.0,1.0569882]
[1755179912730,0.431781,118510.0,118500.0,1.0569882]
[1755179912928,1.13196356,118510.0,118500.0,1.4177882]
[1755179913129,1.13196356,118510.0,118500.0,1.33344]
[1755179913633,1.13196356,118510.0,118490.0,0.3608]
[1755179913634,0.4317887,118500.0,118490.0,0.3608]
[1755179913835,1.13197126,118500.0,118490.0,1.3334]
[1755179914023,1.13197126,118500.0,118480.0,0.3608]
[1755179914331,0.4317958,118490.0,118480.0,0.445163]
[1755179914535,0.4317958,118490.0,118480.0,1.417483]
[1755179914932,0.4317958,118490.0,118480.0,1.33312]
[1755179915230,0.4317958,118490.0,118480.0,1.4174832]
[1755179915944,0.05013,118500.0,118490.0,0.0843561]
[1755179916230,0.1344791,118500.0,118490.0,0.4451561]
[1755179916419,0.2198391,118500.0,118490.0,0.4451561]
[1755179916627,0.1334791,118500.0,118490.0,0.4451561]
[1755179917127,0.1334791,118500.0,118490.0,0.4461561]
[1755179917532,0.1334789,118500.0,118490.0,0.4461561]
[1755179918627,0.4317889,118500.0,118490.0,0.0853561]
[1755179918826,0.4317889,118500.0,118490.0,1.4179161]
[1755179919228,0.4317889,118500.0,118490.0,0.4461561]
[1755179919428,0.4317889,118500.0,118490.0,1.4178761]
[1755179919641,0.4317889,118500.0,118490.0,0.4461561]
[1755179919831,0.4317889,118500.0,118490.0,1.4178361]
[1755179920032,0.1334789,118500.0,118490.0,1.4178361]
[1755179920335,0.4317889,118500.0,118490.0,0.4461561]
[1755179920536,0.4317889,118500.0,118490.0,0.3618]
[1755179920736,1.13197146,118500.0,118490.0,1.33328]
[1755179920928,0.4317889,118500.0,118490.0,1.417636]
[1755179921431,0.4317889,118500.0,118490.0,1.33328]
[1755179921738,0.4317889,118500.0,118490.0,0.97248]
[1755179921939,0.4317889,118500.0,118490.0,1.056836]
[1755179922438,0.4317889,118500.0,118490.0,1.055836]
[1755179922632,1.13197146,118500.0,118490.0,0.97148]
[1755179923033,0.4317889,118500.0,118490.0,0.97148]
[1755179923630,0.4317889,118500.0,118490.0,1.055836]
[1755179923830,0.4317889,118500.0,118490.0,1.416636]
[1755179924733,0.3583189,118500.0,118490.0,1.416636]
[1755179924935,0.4317889,118500.0,118490.0,1.416636]
[1755179928139,0.4317889,118500.0,118490.0,0.3608]
[1755179928338,1.13197146,118500.0,118490.0,0.97064]
[1755179928946,0.0843557,118490.0,118480.0,0.3608]
[1755179929145,0.4318028,118480.0,118470.0,0.4451694]
[1755179929442,1.13198536,118480.0,118470.0,1.4153694]
[1755179930638,0.4318028,118480.0,118470.0,1.4153694]
[1755179931138,0.3583328,118480.0,118470.0,1.4153694]
[1755179931536,0.97215536,118480.0,118470.0,1.4153694]
[1755179931742,1.13198536,118480.0,118470.0,1.4153694]
[1755179932540,1.13198536,118480.0,118470.0,1.4173694]
[1755179932940,0.3022106,118490.0,118480.0,0.0843633]
[1755179933846,0.28183952,118510.0,118500.0,0.0843491]
[1755179934037,0.133472,118510.0,118500.0,1.7754291]
[1755179935052,1.12979456,118510.0,118500.0,1.7753891]
[1755179935745,1.13079456,118510.0,118500.0,1.7753891]
[1755179935948,0.430612,118510.0,118500.0,1.7753891]
[1755179936145,0.084349,118500.0,118490.0,0.6982116]
[1755179936350,0.130869,118500.0,118490.0,1.6675316]
[1755179936540,0.130869,118500.0,118490.0,0.6982116]
[1755179936746,0.04652,118500.0,118490.0,0.6982116]
[1755179937144,0.04652,118500.0,118490.0,1.6672516]
[1755179937452,0.299558,118510.0,118500.0,0.084349]
[1755179937747,0.299558,118510.0,118500.0,0.445149]
[1755179939351,0.595698,118510.0,118500.0,1.413989]
[1755179940244,0.595698,118510.0,118500.0,1.414989]
[1755179941145,0.595698,118510.0,118500.0,0.96964]
[1755179941343,0.71648858,118530.0,118520.0,0.0843334]
[1755179941647,0.36937739,118530.0,118520.0,1.4134934]
[1755179941850,0.2699863,118530.0,118520.0,1.4134934]
[1755179942347,0.2699863,118530.0,118520.0,1.42116208]
[1755179942650,0.36966712,118530.0,118520.0,1.42116208]
[1755179942850,0.37066712,118530.0,118520.0,1.4134934]
[1755179945854,0.44234712,118530.0,118520.0,1.4134934]
[1755179949459,0.44234712,118530.0,118520.0,0.4451334]
[1755179949757,0.44234712,118530.0,118520.0,1.4122534]
[1755179951657,0.2951544,118520.0,118510.0,0.5294734]
[1755179951861,1.12717696,118520.0,118510.0,1.4959534]
[1755179952055,0.4269944,118520.0,118510.0,1.4959534]
[1755179952255,0.44135522,118520.0,118510.0,1.4959534]
[1755179952759,0.44135522,118520.0,118510.0,1.1351534]
[1755179953157,0.44135522,118520.0,118510.0,1.1361534]
[1755179954461,0.44135522,118520.0,118510.0,1.4969534]
[1755179954858,0.44135522,118520.0,118510.0,0.1696734]
[1755179955064,0.44135522,118520.0,118510.0,1.1355934]
[1755179956867,1.50313778,118520.0,118510.0,0.001]
[1755179957067,1.50313778,118520.0,118510.0,0.9666]
[1755179957564,0.1622887,118500.0,118480.0,0.5295211]
[1755179957771,0.4270158,118490.0,118480.0,0.6138822]
[1755179957959,0.44137662,118490.0,118480.0,1.5793222]
[1755179958159,0.44137662,118490.0,118480.0,1.4949611]
[1755179958362,0.44897665,118490.0,118480.0,1.4949611]
[1755179958864,0.44137662,118490.0,118480.0,1.4979611]
[1755179959067,0.22317662,118490.0,118480.0,1.4979611]
[1755179959368,0.22317662,118490.0,118480.0,1.4989611]
[1755179960168,0.38017662,118490.0,118480.0,1.4989611]
[1755179960357,0.38017662,118490.0,118480.0,0.5335211]
[1755179960562,0.38017662,118490.0,118480.0,1.4986011]
[1755179960868,0.38017662,118490.0,118480.0,0.5335211]
[1755179961062,0.38017662,118490.0,118480.0,1.4984011]
[1755179961258,0.30849662,118490.0,118480.0,1.4984011]
[1755179961465,0.22317662,118490.0,118480.0,1.4983611]
[1755179961765,0.22317662,118490.0,118480.0,0.5335211]
[1755179961964,0.22317662,118490.0,118480.0,1.4982811]
[1755179962170,0.38017662,118490.0,118480.0,1.4982811]
[1755179962973,0.01436082,118490.0,118480.0,2.19926366]
[1755179963969,0.01436082,118490.0,118480.0,2.19846366]
[1755179964170,0.09871662,118490.0,118480.0,2.19846366]
[1755179964366,0.09871662,118490.0,118480.0,1.4982811]
[1755179964772,0.21951662,118490.0,118480.0,1.4977211]
[1755179964969,1.13224918,118490.0,118480.0,0.3648]
[1755179965270,1.13224918,118490.0,118480.0,1.4134029]
[1755179965662,0.43206662,118490.0,118480.0,1.4134029]
[1755179966573,0.43206662,118490.0,118480.0,1.32904]
[1755179966773,1.13224918,118490.0,118480.0,1.32892]
[1755179968473,1.13224918,118490.0,118480.0,0.004]
[1755179968666,1.13224918,118490.0,118480.0,0.96784]
[1755179968866,1.13324918,118490.0,118480.0,0.96384]
[1755179969773,0.0843628,118480.0,118470.0,0.6139072]
[1755179969979,0.43207362,118480.0,118470.0,1.5771072]
[1755179970276,0.43207362,118480.0,118470.0,0.6139072]
[1755179970575,0.43207362,118480.0,118470.0,1.5769872]
[1755179971173,0.43707362,118480.0,118470.0,1.5770272]
[1755179971772,0.0843699,118470.0,118460.0,0.3608]
[1755179971975,0.262207,118460.0,118450.0,0.4451785]
[1755179972167,1.11790956,118460.0,118450.0,1.4079785]
[1755179972470,1.13227038,118460.0,118450.0,1.4079785]
[1755179972669,0.43208782,118460.0,118450.0,1.4079785]
[1755179972870,0.43981166,118460.0,118450.0,1.4079785]
[1755179973171,0.43208782,118460.0,118450.0,1.4079785]
[1755179973573,0.43208782,118460.0,118450.0,1.4099785]
[1755179973969,0.43962418,118460.0,118450.0,0.4471785]
[1755179974274,0.43208782,118460.0,118450.0,1.4096185]
[1755179974474,0.43308782,118460.0,118450.0,1.4096185]
[1755179975767,0.43308782,118460.0,118450.0,1.4104185]
[1755179975962,0.09973782,118460.0,118450.0,2.11060106]
[1755179976277,0.09973782,118460.0,118450.0,1.4104185]
[1755179976278,0.01536082,118460.0,118450.0,1.4104185]
[1755179976671,0.09973772,118460.0,118450.0,2.11060106]
[1755179976974,0.09973772,118460.0,118450.0,1.4096185]
[1755179977170,0.37605772,118460.0,118450.0,1.4096185]
[1755179977369,0.43308772,118460.0,118450.0,1.4096185]
[1755179978272,0.36448772,118460.0,118450.0,1.4096185]
[1755179978470,0.43308772,118460.0,118450.0,1.4096185]
[1755179979379,1.13327028,118460.0,118450.0,1.4085439]
[1755179979571,1.13327028,118460.0,118450.0,1.32416]
[1755179980066,1.13327028,118460.0,118450.0,1.32408]
[1755179980273,1.13327028,118460.0,118450.0,0.96328]
[1755179980576,0.43308772,118460.0,118450.0,0.96328]
[1755179980776,0.43308772,118460.0,118450.0,1.4084639]
[1755179980977,0.43308772,118460.0,118450.0,0.3628]
[1755179981171,0.43308772,118460.0,118450.0,1.324]
[1755179981370,0.43308772,118460.0,118450.0,1.32372]
[1755179981574,1.13407028,118460.0,118450.0,0.002]
[1755179981771,1.13407028,118460.0,118450.0,0.96284]
[1755179982374,1.13327028,118460.0,118450.0,0.96284]
[1755179982771,1.49407028,118460.0,118450.0,0.9626]
[1755179983777,1.49407028,118460.0,118450.0,0.002]
[1755179983980,1.49487028,118460.0,118450.0,0.002]
[1755179984987,0.79388772,118460.0,118450.0,0.002]
[1755179985279,1.13327028,118460.0,118450.0,0.002]
[1755179986280,1.13327028,118460.0,118450.0,0.0863836]
[1755179986468,0.43308772,118460.0,118450.0,0.0863836]
[1755179986670,0.43308772,118460.0,118450.0,0.4471836]
[1755179986976,0.43308772,118460.0,118450.0,0.0863836]
[1755179987175,0.43308772,118460.0,118450.0,0.4471836]
[1755179987377,0.43308772,118460.0,118450.0,0.0863836]
[1755179987578,0.43308772,118460.0,118450.0,0.4471836]
[1755179987776,0.43308772,118460.0,118450.0,0.0863836]
[1755179987975,1.13327028,118460.0,118450.0,0.0863836]
[1755179988184,0.43308772,118460.0,118450.0,0.0863836]
[1755179988676,1.13327028,118460.0,118450.0,0.0863836]
[1755179989168,0.43308772,118460.0,118450.0,0.4471836]
[1755179989772,0.43308772,118460.0,118450.0,0.0863836]
[1755179989973,1.13327028,118460.0,118450.0,0.002]
[1755179990282,0.43308772,118460.0,118450.0,0.0863842]
[1755179990578,0.01536082,118460.0,118450.0,1.14816676]
[1755179990786,0.09973792,118460.0,118450.0,0.4479842]
[1755179990982,0.09973792,118460.0,118450.0,1.14816676]
[1755179991683,0.09973792,118460.0,118450.0,0.4479842]
[1755179992182,0.14495792,118460.0,118450.0,0.4471842]
[1755179992571,0.14495792,118460.0,118450.0,1.4058242]
[1755179992881,0.06058082,118460.0,118450.0,1.4066242]
[1755179993082,0.01536082,118460.0,118450.0,2.10680676]
[1755179993685,0.01536082,118460.0,118450.0,2.47564676]
[1755179994086,0.01436082,118460.0,118450.0,2.47564676]
[1755179995185,0.01436082,118460.0,118450.0,1.7754642]
[1755179995487,0.01436082,118460.0,118450.0,2.47564676]
[1755179996390,0.3499191,118510.0,118500.0,0.0843485]
[1755179996581,0.4315591,118510.0,118500.0,1.4028285]
[1755179996884,0.5022891,118510.0,118500.0,1.4028285]
[1755179997482,0.1726891,118510.0,118500.0,1.4038285]
[1755179997687,0.2190491,118510.0,118500.0,1.4038285]
[1755179997889,0.3714191,118510.0,118500.0,1.4038285]
[1755179998087,0.4515491,118510.0,118500.0,1.4038285]
[1755179998488,0.5062891,118510.0,118500.0,1.31948]
[1755179998681,1.20947166,118510.0,118500.0,1.31948]
[1755179999183,1.20647166,118510.0,118500.0,0.95796]
[1755179999386,1.56807166,118510.0,118500.0,0.001]
[1755179999579,0.4179558,118490.0,118480.0,0.3608]
[1755179999775,1.11813836,118490.0,118480.0,1.3176]
[1755179999980,0.4179558,118490.0,118480.0,0.9568]
[1755180000188,1.11813836,118490.0,118480.0,1.0411628]
[1755180000485,0.04636,118490.0,118480.0,1.4019628]
[1755180000987,0.04636,118490.0,118480.0,2.10214536]
[1755180001185,0.2550379,118510.0,118500.0,0.084349]
[1755180001401,0.4537679,118510.0,118500.0,1.401509]
[1755180001581,0.1327018,118510.0,118500.0,1.401509]
[1755180001782,0.002,118510.0,118500.0,1.401509]
[1755180001989,0.0863418,118510.0,118500.0,1.401509]
[1755180002290,0.002,118510.0,118500.0,1.762309]
[1755180002693,0.04636,118510.0,118500.0,1.762309]
[1755180003191,0.04636,118510.0,118500.0,1.763309]
[1755180003488,0.1307018,118510.0,118500.0,1.763309]
[1755180003690,0.98325436,118510.0,118500.0,1.762949]
[1755180004189,0.98325436,118510.0,118500.0,1.762589]
[1755180004483,0.19873,118510.0,118500.0,1.762589]
[1755180004692,0.2830718,118510.0,118500.0,1.77026513]
[1755180005086,0.2830718,118510.0,118500.0,1.762589]
[1755180005287,0.98325436,118510.0,118500.0,1.762589]
[1755180005481,0.98325436,118510.0,118500.0,0.446149]
[1755180005683,1.34485436,118510.0,118500.0,0.001]
[1755180006186,0.98325436,118510.0,118500.0,1.0405089]
[1755180006584,0.19873,118510.0,118500.0,1.4013089]
[1755180006785,0.2830717,118510.0,118500.0,1.4013089]
[1755180007082,0.19873,118510.0,118500.0,1.4013089]
[1755180007289,0.1307017,118510.0,118500.0,1.4013089]
[1755180007678,0.04636,118510.0,118500.0,1.4013089]
[1755180007889,0.2123417,118510.0,118500.0,1.4013089]
[1755180008194,0.2830717,118510.0,118500.0,1.4013089]
[1755180008396,0.98325426,118510.0,118500.0,0.4461489]
[1755180008698,0.98325426,118510.0,118500.0,1.4009889]
[1755180010890,0.2830717,118510.0,118500.0,1.4001089]
[1755180011196,0.98325426,118510.0,118500.0,1.0393086]
[1755180011387,0.98325426,118510.0,118500.0,1.0393085]
[1755180011787,0.98325426,118510.0,118500.0,0.95496]
[1755180011987,0.98325426,118510.0,118500.0,0.95488]
[1755180012184,1.34485426,118510.0,118500.0,0.001]
[1755180012492,1.34485426,118510.0,118480.0,1.1223575]
[1755180012493,0.2830856,118490.0,118480.0,1.1223575]
[1755180012690,0.2830856,118490.0,118470.0,0.1687372]
[1755180012691,0.2830927,118480.0,118470.0,0.1687372]
[1755180012894,0.29089915,118480.0,118470.0,0.1687372]
[1755180013100,0.99108171,118480.0,118470.0,1.1222172]
[1755180013290,0.2830927,118480.0,118470.0,1.4830172]
[1755180013889,0.2830927,118480.0,118470.0,1.4870172]
[1755180014088,0.2830927,118480.0,118470.0,1.1262172]
[1755180014897,0.2830927,118480.0,118470.0,1.1257772]
[1755180015098,0.98527526,118480.0,118470.0,1.1257772]
[1755180015693,0.98527526,118480.0,118470.0,1.1217772]
[1755180015894,0.98627526,118480.0,118470.0,1.1217772]
[1755180016401,0.2860927,118480.0,118470.0,1.1215772]
[1755180016589,0.2860927,118480.0,118470.0,1.4823772]
[1755180016990,0.20173,118480.0,118470.0,1.4823772]
[1755180017198,0.2860932,118480.0,118470.0,1.4823772]
[1755180018095,0.2860932,118480.0,118470.0,0.5295372]
[1755180018300,0.98627576,118480.0,118470.0,1.4822572]
[1755180019902,0.98627576,118480.0,118470.0,0.1687372]
[1755180020093,1.12114576,118480.0,118470.0,1.0367276]
[1755180020293,1.18951128,118480.0,118470.0,1.0367276]
[1755180020493,0.2192473,118460.0,118450.0,0.1687616]
[1755180020694,1.11815986,118460.0,118450.0,1.1205216]
[1755180020893,1.11815986,118460.0,118450.0,1.1204416]
[1755180021302,1.11815986,118460.0,118450.0,1.1203616]
[1755180021804,1.11915986,118460.0,118450.0,1.0360598]
[1755180021998,1.11915986,118460.0,118450.0,0.0843844]
[1755180022403,0.4189773,118460.0,118450.0,0.4461844]
[1755180022601,0.4189773,118460.0,118450.0,1.3976244]
[1755180022902,0.4199773,118460.0,118450.0,1.3966244]
[1755180023097,0.4199773,118460.0,118450.0,1.0358244]
[1755180023698,0.4199773,118460.0,118450.0,1.3966244]
[1755180023907,0.4199773,118460.0,118450.0,1.0358244]
[1755180024100,0.4189773,118460.0,118450.0,1.0358244]
[1755180024302,0.4209773,118460.0,118450.0,1.0358244]
[1755180024509,0.4209773,118460.0,118450.0,0.0843844]
[1755180024809,1.12115986,118460.0,118450.0,0.0843844]
[1755180025000,0.4241844,118450.0,118440.0,0.4451915]
[1755180025308,1.12436696,118450.0,118440.0,1.0352315]
[1755180025709,0.4241844,118450.0,118440.0,1.3960315]
[1755180026308,0.4241844,118450.0,118440.0,1.3970315]
[1755180026903,0.4241844,118450.0,118440.0,0.0853915]
[1755180027101,0.4241844,118450.0,118440.0,1.0359915]
[1755180027301,0.4241844,118450.0,118440.0,1.3967915]
[1755180027905,0.42479349,118450.0,118440.0,1.3967915]
[1755180028101,0.4326025,118450.0,118440.0,1.3967915]
[1755180028307,0.4326025,118450.0,118440.0,0.4461915]
[1755180028506,0.42479349,118450.0,118440.0,1.3964315]
[1755180029411,0.140174,118450.0,118440.0,1.3964315]
[1755180029610,0.001,118450.0,118440.0,2.09741406]
[1755180029915,0.04747,118470.0,118460.0,0.0851769]
[1755180030101,0.36893632,118480.0,118460.0,2.62534876]
[1755180030299,0.45330612,118480.0,118470.0,0.4451698]
[1755180030602,0.45665632,118480.0,118470.0,0.4451698]
[1755180030999,0.52791632,118480.0,118470.0,0.4451698]
[1755180031412,0.66526632,118480.0,118470.0,0.4451698]
[1755180031707,0.66526632,118480.0,118460.0,0.2541262]
[1755180031708,0.4241697,118470.0,118460.0,0.2541262]
[1755180032007,0.99100226,118470.0,118460.0,0.0853768]
[1755180032206,0.2908197,118470.0,118460.0,0.0843768]
[1755180032407,0.99100226,118470.0,118460.0,0.0843768]
[1755180032610,0.1318397,118470.0,118460.0,0.0843768]
[1755180032806,0.2195597,118470.0,118460.0,0.0843768]
[1755180033001,0.2215597,118470.0,118460.0,0.4451768]
[1755180033203,0.1338397,118470.0,118460.0,0.4451768]
[1755180034609,0.2215597,118470.0,118460.0,0.4451768]
[1755180034808,0.2928197,118470.0,118460.0,0.0843768]
[1755180035014,0.2958197,118470.0,118460.0,1.0337768]
[1755180035313,0.2948197,118470.0,118460.0,1.0337368]
[1755180035510,0.99500226,118470.0,118460.0,0.001]
[1755180035717,0.2908268,118460.0,118450.0,1.5622631]
[1755180035908,0.99100936,118460.0,118450.0,0.5295605]
[1755180036103,0.99100936,118460.0,118450.0,1.4777605]
[1755180036308,0.99100936,118460.0,118450.0,0.5295605]
[1755180036517,0.99100936,118460.0,118450.0,1.4776805]
[1755180036719,0.2908339,118450.0,118440.0,0.6139686]
[1755180036907,0.2908339,118450.0,118440.0,1.5619286]
[1755180037418,0.1318539,118450.0,118440.0,1.5619286]
[1755180038112,0.2908339,118450.0,118440.0,1.5619286]
[1755180038313,0.1318539,118450.0,118440.0,1.5619286]
[1755180038709,0.04747,118450.0,118440.0,1.5619286]
[1755180039108,0.04747,118450.0,118440.0,2.26311116]
[1755180039109,0.001,118450.0,118440.0,2.26311116]
[1755180039306,0.001,118450.0,118440.0,2.26391116]
[1755180039911,0.3849666,118470.0,118460.0,0.0843767]
[1755180040113,0.3849666,118470.0,118460.0,1.3924567]
[1755180040314,0.5439466,118470.0,118460.0,1.0316567]
[1755180040818,1.24412916,118470.0,118460.0,1.0316567]
[1755180041020,0.5439466,118470.0,118460.0,1.0316567]
[1755180041804,1.24412916,118470.0,118460.0,1.0316567]
[1755180042206,0.5439466,118470.0,118460.0,1.0316567]
[1755180042408,1.24412916,118470.0,118460.0,1.0316567]
[1755180042809,0.2195659,118460.0,118450.0,1.1996609]
[1755180043123,0.91974846,118460.0,118450.0,1.030903]
[1755180043315,0.99100846,118460.0,118450.0,0.084383]
[1755180043516,0.99100846,118460.0,118450.0,1.030703]
[1755180043717,0.084383,118450.0,118440.0,0.6983565]
[1755180043918,0.290833,118450.0,118440.0,1.6446365]
[1755180044221,0.290833,118450.0,118440.0,1.1992868]
[1755180044419,0.290833,118450.0,118440.0,0.6139668]
[1755180044624,0.290833,118450.0,118440.0,1.5600468]
[1755180044922,0.1318531,118450.0,118440.0,1.5600468]
[1755180045521,0.301611,118460.0,118450.0,0.0843831]
[1755180045719,0.300611,118460.0,118450.0,0.0843831]
[1755180045917,0.2162168,118470.0,118450.0,1.39851036]
[1755180046108,0.2162168,118470.0,118460.0,1.3908159]
[1755180046813,0.04747,118470.0,118460.0,2.09099846]
[1755180047316,0.1318388,118470.0,118460.0,2.09099846]
[1755180047616,0.1318388,118470.0,118460.0,1.3905759]
[1755180047818,0.2908188,118470.0,118460.0,1.3905759]
[1755180048616,0.2918188,118470.0,118460.0,0.4451759]
[1755180048825,0.99200136,118470.0,118460.0,1.3904159]
[1755180049018,0.2918188,118470.0,118460.0,1.30604]
[1755180049218,0.2918188,118470.0,118450.0,0.6983278]
[1755180049219,0.1318463,118460.0,118450.0,0.4451785]
[1755180049419,0.2908263,118460.0,118450.0,1.3900985]
[1755180049616,0.2908263,118460.0,118450.0,1.30572]
[1755180049814,0.2908263,118460.0,118440.0,0.6983571]
[1755180049815,0.0843834,118450.0,118440.0,0.6139671]
[1755180050120,0.1318534,118450.0,118440.0,1.5586071]
[1755180050420,0.2908334,118450.0,118440.0,1.3897471]
[1755180050619,0.29897777,118450.0,118440.0,1.3897471]
[1755180051212,0.2908334,118450.0,118440.0,1.3897471]
[1755180051616,0.2908334,118450.0,118440.0,1.3907471]
[1755180052016,0.2908334,118450.0,118440.0,1.3917471]
[1755180052417,0.2918334,118450.0,118440.0,1.3907471]
[1755180052726,0.4251834,118450.0,118440.0,1.3907471]
[1755180053427,0.1328534,118450.0,118440.0,1.3907471]
[1755180053913,0.04847,118450.0,118440.0,1.3907471]
[1755180054119,0.1328531,118450.0,118440.0,1.3907471]
[1755180054322,0.04847,118450.0,118440.0,1.3907471]
[1755180054723,0.001,118450.0,118440.0,1.3896271]
[1755180055221,0.001,118450.0,118440.0,2.08980966]
[1755180055612,0.001,118450.0,118440.0,1.14636966]
[1755180055818,0.1306129,118450.0,118440.0,1.3893871]
[1755180056021,0.04623,118450.0,118440.0,1.3893871]
[1755180056217,0.001,118450.0,118440.0,1.3893871]
[1755180056423,0.001,118450.0,118440.0,2.08956966]
[1755180056725,0.001,118450.0,118440.0,1.3893871]
[1755180056926,0.001,118450.0,118440.0,0.4461871]
[1755180056927,0.04623,118450.0,118440.0,0.4461871]
[1755180057112,0.2158428,118450.0,118440.0,1.3892271]
[1755180057311,0.13146,118450.0,118440.0,1.3892271]
[1755180057519,0.2158428,118450.0,118440.0,1.3892271]
[1755180058231,0.1306128,118450.0,118440.0,1.3892271]
[1755180058521,0.1306128,118450.0,118440.0,1.3889471]
[1755180058721,0.1306128,118450.0,118440.0,1.3885471]
[1755180058921,0.1306128,118450.0,118440.0,0.4461871]
[1755180059115,0.4223728,118450.0,118440.0,0.44619]
[1755180059426,0.4223728,118450.0,118440.0,1.38843]
[1755180060322,0.4223728,118450.0,118440.0,0.44619]
[1755180060534,1.12255536,118450.0,118440.0,1.02727]
[1755180061025,1.12335536,118450.0,118440.0,0.001]
[1755180061225,1.48415536,118450.0,118440.0,0.001]
[1755180061436,1.48415536,118450.0,118440.0,0.94272]
[1755180061626,0.7839728,118450.0,118440.0,1.02711]
[1755180061828,1.48415536,118450.0,118440.0,0.94272]
[1755180062224,1.48335536,118450.0,118440.0,1.02711]
[1755180064128,0.7831728,118450.0,118440.0,1.02611]
[1755180064329,1.48335536,118450.0,118440.0,1.02611]
[1755180064528,1.48335536,118450.0,118440.0,0.94172]
[1755180065031,1.48335536,118450.0,118440.0,1.02611]
[1755180066232,0.7831728,118450.0,118440.0,1.02611]
[1755180066537,0.7100728,118450.0,118440.0,1.02475]
[1755180066733,0.4914128,118450.0,118440.0,0.08439]
[1755180066929,0.4914128,118450.0,118440.0,1.02463]
[1755180067130,0.5645128,118450.0,118440.0,1.02463]
[1755180067333,0.1306128,118450.0,118440.0,1.02463]
[1755180067536,0.4223728,118450.0,118440.0,1.38543]
[1755180067738,0.001,118450.0,118440.0,2.08641256]
[1755180069233,0.001,118450.0,118440.0,0.44519]
[1755180069436,0.130613,118450.0,118440.0,1.39288451]
[1755180069637,0.04623,118450.0,118440.0,1.39288451]
[1755180069826,0.130613,118450.0,118440.0,1.39288451]
[1755180070029,0.130613,118450.0,118440.0,1.39264451]
[1755180070229,0.130613,118450.0,118440.0,1.38455]
[1755180070429,1.12255556,118450.0,118440.0,0.93928]
[1755180070631,0.42138,118440.0,118430.0,0.5972298]
[1755180070939,1.12156256,118440.0,118430.0,1.5365098]
[1755180071135,0.42138,118440.0,118430.0,1.4521142]
[1755180071440,0.42138,118440.0,118430.0,1.4521171]
[1755180071739,0.42138,118440.0,118430.0,1.00676]
[1755180071740,0.98813256,118440.0,118430.0,1.00676]
[1755180072037,0.98813256,118440.0,118430.0,1.0911571]
[1755180072242,0.28795,118440.0,118430.0,1.0911571]
[1755180073738,0.98813256,118440.0,118430.0,1.0911571]
[1755180074240,0.28795,118440.0,118430.0,1.0911571]
[1755180074933,0.98813256,118440.0,118430.0,1.0911571]
[1755180075135,1.12156256,118440.0,118430.0,1.0911571]
[1755180075328,1.48236256,118440.0,118430.0,1.00676]
[1755180075532,1.48236256,118440.0,118430.0,1.00564]
[1755180076037,1.48236256,118440.0,118430.0,1.090037]
[1755180077533,0.78218,118440.0,118430.0,1.090037]
[1755180080349,0.42138,118440.0,118430.0,1.450837]
[1755180080837,0.12962,118440.0,118430.0,1.450837]
[1755180083640,0.2140009,118450.0,118440.0,0.0843895]
[1755180083840,0.2983889,118450.0,118440.0,0.4451895]
[1755180084049,0.04523,118450.0,118440.0,0.4461895]
[1755180085239,0.04523,118450.0,118440.0,0.4451895]
[1755180086139,0.04742,118460.0,118450.0,0.3375089]
[1755180086340,0.1317953,118460.0,118450.0,1.6336689]
[1755180086538,0.2101153,118460.0,118450.0,1.6336689]
[1755180086744,0.2771853,118460.0,118450.0,1.6336689]
[1755180087732,0.3305153,118460.0,118450.0,1.5492887]
[1755180087937,1.11032786,118460.0,118450.0,1.0197425]
[1755180088338,1.11032786,118460.0,118450.0,1.0207425]
[1755180089747,0.4101453,118460.0,118450.0,1.0207425]
[1755180090144,0.4101453,118460.0,118450.0,1.0882725]
[1755180092151,1.11032786,118460.0,118450.0,1.00213]
[1755180092340,1.11032786,118460.0,118450.0,0.06853]
[1755180093151,1.47192786,118460.0,118450.0,1.00193]
[1755180093350,0.4101596,118440.0,118430.0,0.6360167]
[1755180093651,0.4101596,118440.0,118430.0,1.5692567]
[1755180093954,0.1318096,118440.0,118430.0,1.5692567]
[1755180094247,0.0843896,118440.0,118430.0,1.5692567]
[1755180094749,0.0843896,118440.0,118430.0,1.5702567]
[1755180095352,0.3375487,118450.0,118440.0,0.2751095]
[1755180095653,0.3375487,118450.0,118440.0,0.6359095]
[1755180096446,0.5781987,118450.0,118440.0,0.6359095]
[1755180096837,0.5111287,118450.0,118440.0,0.6359095]
[1755180097041,0.3849687,118450.0,118440.0,0.6359095]
[1755180097550,0.3005801,118450.0,118440.0,0.6359095]
[1755180097943,0.3005801,118450.0,118440.0,0.6369095]
[1755180098144,0.5789301,118450.0,118440.0,0.6369095]
[1755180098449,0.5789301,118450.0,118440.0,0.55252]
[1755180098648,1.27911266,118450.0,118440.0,0.55252]
[1755180098960,1.27911266,118450.0,118440.0,0.50681]
[1755180099250,1.27911266,118450.0,118440.0,0.39528]
[1755180099441,1.27911266,118450.0,118440.0,1.32692]
[1755180099750,1.27911266,118450.0,118440.0,1.32592]
[1755180100046,1.27911266,118450.0,118440.0,0.001]
[1755180100244,1.27911266,118450.0,118440.0,0.93232]
[1755180100245,1.64071266,118450.0,118440.0,0.93232]
[1755180100445,0.4101599,118440.0,118430.0,0.0001]
[1755180100638,1.11034246,118440.0,118430.0,0.93138]
[1755180100842,0.4101599,118440.0,118430.0,0.93138]
[1755180101054,1.11034246,118440.0,118430.0,0.99022]
[1755180101351,0.4101599,118440.0,118430.0,1.159787]
[1755180101551,0.4101599,118440.0,118430.0,1.206497]
[1755180102150,0.4101599,118440.0,118430.0,1.567297]
[1755180102847,0.4101599,118440.0,118430.0,1.206497]
[1755180104351,0.4101599,118440.0,118430.0,1.1221]